Cogmind - Beta 15 @@@ ROGUE MODE // 2025.07.25 @ 22:02:08 Player: FenRhew Result: Self-destructed Performance ------------- Evolutions (6) 3000 Regions Visited (6) 1200 Robots Destroyed (71) 355 Value Destroyed (2491) 2491 Prototype IDs (11) 220 Alien Tech Used (0) 0 Bonus (800) 800 TOTAL SCORE: 8066 Bonus ------- Registered with UFD 300 Met Optimus in HQ 500 Cogmind --------- Core Integrity 218/1150 Matter 46/300 Energy 82/100 System Corruption 2% Temperature Cool (0) Movement Treading (170) Location -4/Factory Parts ------- > --- POWER (2) -------- (None) > --- PROPULSION (5) --- Armored Medium Treads Armored Medium Treads > --- UTILITY (10) ----- Improved Signal Interpreter System Shield > --- WEAPON (2) ------- (None) > --- INVENTORY (5) ---- Light Fission Core Improved Sensor Array Advanced Terrain Scanner Advanced ECM Suite Peak State ------------ > --- POWER ------------ Angular Momentum Engine Light Fission Core > --- PROPULSION ------- Overtuned Medium Treads Flexi-carbon Leg Overtuned Huge Scrapsphere > --- UTILITY ---------- Scrap Suit Large Storage Unit Improved Signal Interpreter Targeting Computer Improved Kinecellerator Improved Propulsion Shielding Makeshift Hacking Suite Makeshift System Shield Long-range Tractor Beam > --- WEAPON ----------- Gauss Rifle Power Sword > --- INVENTORY -------- Light Fission Core Impulse Thruster Advanced Cryofiber Web Improved Cooling System Improved Sensor Array Advanced Terrain Scanner Advanced ECM Suite System Shield Mass Driver Heavy Rocket Launcher Improved Remote Datajack [Rating: 83] Favorites ----------- Power Angular Momentum Engine Engine Angular Momentum Engine Power Core Neutrino Core Reactor Light Antimatter Reactor Propulsion Compact Wheel Treads Light Treads Leg Flexi-carbon Leg Wheel Compact Wheel Flight Unit Impulse Thruster Utility Humpback Device Scrap Suit Storage Humpback Processor Improved Signal Interpreter Hackware Makeshift Hacking Suite Protection Scrap Shield Weapon Minigun Energy Gun Gatling Laser Energy Cannon Advanced Plasma Cannon Ballistic Gun Minigun Ballistic Cannon Assault Cannon Launcher Subdweller Shrapnel Launcher Special Weapon Improved Remote Datajack Slashing Weapon Power Sword Build | -11 -10 -10 -7 -7 -5 -4 ------- Run | Yrd Mat Sub Rec Scr Fac Fac Slots Evolved 12 | . . . . . 10 2 Power 1 | . . . . . . 1 Propulsion 3 | . . . . . 3 . Utility 8 | . . . . . 7 1 Weapon . | . . . . . . . Parts Attached 82 | 6 6 7 7 6 38 12 Power 13 | 1 1 1 2 4 2 2 Engine 10 | 1 1 1 2 4 1 . Core 2 | . . . . . 1 1 Reactor 1 | . . . . . . 1 Propulsion 21 | 2 2 2 2 1 7 5 Treads 9 | . 2 . . . 4 3 Leg 4 | 2 . . . . 1 1 Wheel 7 | . . 2 2 1 2 . Hover . | . . . . . . . Flight 1 | . . . . . . 1 Utility 28 | 1 1 2 1 . 20 3 Device 11 | . 1 . . . 8 2 Storage 3 | 1 . . 1 . 1 . Processor 3 | . . 1 . . 2 . Hackware 4 | . . . . . 3 1 Protection 7 | . . 1 . . 6 . Artifact . | . . . . . . . Weapon 20 | 2 2 2 2 1 9 2 Energy Gun 3 | . . . 1 . 2 . Energy Cannon 1 | . . . . . 1 . Ballistic Gun 9 | 2 1 1 1 . 3 1 Ballistic Cannon 3 | . 1 . . 1 1 . Launcher 2 | . . 1 . . 1 . Special Weapon 1 | . . . . . . 1 Impact Weapon . | . . . . . . . Slashing Weapon 1 | . . . . . 1 . Piercing Weapon . | . . . . . . . Special Melee Weapon . | . . . . . . . Unidentified Prototypes . | . . . . . . . Parts Lost 47 | . 2 1 6 . 18 20 Power 7 | . 1 . 2 . 1 3 Propulsion 12 | . . 1 2 . 5 4 Utility 15 | . . . . . 8 7 Weapon 13 | . 1 . 2 . 4 6 Highest Loss Streak 15 | . 1 1 3 . 4 15 To Critical Strikes . | . . . . . . . Average Backups 19 | 3 7 4 14 30 21 12 Power 1 | . . . 1 1 2 1 Propulsion 3 | 2 2 . 2 6 2 1 Utility 10 | . 2 2 7 17 12 5 Weapon 2 | . 2 1 2 3 3 3 Tool/Special . | . . . . . . . Unused Backups 45 | . 1 5 2 24 10 3 Power 4 | . . . . 1 2 1 Propulsion 11 | . 1 . . 10 . . Utility 24 | . . 4 2 10 6 2 Weapon 5 | . . 1 . 3 1 . Tool/Special 1 | . . . . . 1 . Average Slot Usage (%) 80 | . 97 84 82 78 74 66 Engine 11 | . 14 14 12 14 3 4 Treads 5 | . 27 12 . . 3 . Wheel 15 | . . 13 26 21 10 4 Device 4 | . 11 1 . . 10 11 Storage 10 | . 14 1 13 14 4 4 Processor 1 | . . . . . 4 9 Hackware 3 | . . . . . 16 11 Protection 2 | . . 12 . . 2 4 Energy Gun 4 | . . . 9 8 2 . Ballistic Gun 12 | . 20 16 13 14 2 3 Ballistic Cannon 4 | . 7 3 4 5 1 . Launcher 1 | . . 7 . . . . Peak Build Rating 83 | 6 8 12 19 34 80 83 Average Rating 30 | 4 7 10 14 26 72 63 On Entrance 19 | . 6 7 11 18 34 63 Naked Turns . | . . . . . . . Heaviest Build 237 | 11 16 33 212 221 237 61 Greatest Support 48 | 20 40 40 32 32 48 27 Greatest Overweight (x) 20 | . . 3 20 7 4 3 Average Overweight (x) 3 | . . 2 6 6 2 1 Largest Inventory Capacity 35 | 8 8 8 35 35 35 15 Average Capacity 24 | 6 8 5 33 35 27 14 Most Carried 35 | 7 8 8 24 35 33 15 Average Carried 20 | 3 7 5 15 32 22 12 Final Capacity 35 | 8 8 5 35 35 15 5 Final Carried 35 | 7 7 5 22 35 15 4 Class Distribution -------------------- 60% | Hauler-Mutant 24% | Mutant 7% | Hacker-Mutant Dominant Class ---------------- Mutant | -10/Materials Mutant | -10/Subcaves Hauler-Mutant | -7/Recycling Hauler-Mutant | -7/Scraptown Hauler-Mutant | -5/Factory Hacker-Mutant | -4/Factory Resources | -11 -10 -10 -7 -7 -5 -4 ----------- Run | Yrd Mat Sub Rec Scr Fac Fac Matter Collected 2159 | 113 236 264 461 70 839 176 Remotely 309 | . . . . . 138 171 Salvage Created 2472 | 30 258 98 636 . 1209 241 Parts 123 | 2 24 19 15 . 43 20 Haulers Intercepted . | . . . . . . . Recyclers Shooed 2 | . . . 2 . . . Parts Field Recycled . | . . . . . . . Retrieved Matter . | . . . . . . . Parts Self-Destructed 3 | . . 3 . . . . Prevented . | . . . . . . . Kills | -11 -10 -10 -7 -7 -5 -4 ------- Run | Yrd Mat Sub Rec Scr Fac Fac Combat Hostiles Destroyed 51 | . 7 7 3 . 26 8 Melee 1 | . . . . . 1 . Guns 23 | . 5 3 2 . 12 1 Cannons 11 | . 2 . 1 . 8 . AOE 15 | . . 4 . . 4 7 Classes Destroyed 12 | 1 4 2 2 . 3 . Builder 3 | . . . . . 1 2 Tunneler 3 | 2 1 . . . . . Recycler 8 | . . . 7 . 1 . Operator 1 | . 1 . . . . . Turret 2 | . . 2 . . . . Watcher 3 | . 2 . . . 1 . Swarmer 18 | . 3 4 . . 5 6 Grunt 15 | . 4 . . . 11 . Sentry 6 | . . . 3 . 3 . Hunter 8 | . . . . . 6 2 Programmer 1 | . . . . . 1 . Subdweller 3 | . . 3 . . . . Best Kill Streak 8 | 2 6 6 4 . 8 7 Combat Bots Only 8 | . 5 4 1 . 8 6 Max Kills in Single Turn 6 | 1 1 3 1 . 4 6 Gunslinging . | . . . . . . . Exploded 6 | . . 3 . . 4 6 Melee 1 | . . . . . 1 . Uniques/NPCs Destroyed . | . . . . . . . Combat | -11 -10 -10 -7 -7 -5 -4 -------- Run | Yrd Mat Sub Rec Scr Fac Fac Hostile Shots Fired 684 | . 63 31 126 2 275 187 Missed 197 | . 16 10 43 . 56 72 Hits 487 | . 47 21 83 2 219 115 Projectile 487 | . 47 21 83 2 219 115 AOE 1 | . . . . . 1 . Critical Strikes 22 | . . . . . 10 12 Actively Blocked 2 | . . . . . 1 1 Damage Taken 8492 | . 516 333 664 20 4456 2503 Core 1798 | . 55 29 135 10 637 932 Absorbed by Shields . | . . . . . . . Redirected to Shielding 130 | . . . . . 50 80 Regen/Repaired (Parts) 354 | . . . . 262 62 30 Core Remaining (%) 48 | 100 . . . 8 36 . Volleys Fired 223 | 3 47 22 26 . 113 12 Largest 2 | 2 2 2 2 . 2 2 Hottest 167 | 40 50 65 105 . 167 167 Shots Fired 400 | 6 92 39 51 . 193 19 Gun 270 | 6 85 24 35 . 108 12 Cannon 118 | . 7 9 16 . 84 2 Launcher 11 | . . 6 . . 1 4 Special 1 | . . . . . . 1 Kinetic 314 | 6 92 39 41 . 126 10 Thermal 80 | . . . 10 . 66 4 Explosive 5 | . . . . . 1 4 Electromagnetic . | . . . . . . . Robot Hit Streak 48 | 2 8 9 10 . 48 4 Robot Miss Streak 4 | 3 4 3 3 . 4 3 Penetration Max 1 | . . . . . 1 . Secondary Targets 2 | . 1 . . . 1 . Max Gunslinging Chain 1 | . 1 . . . 1 . Shots Hit Robots 267 | 2 51 17 38 . 147 12 Core Hits 163 | 2 24 17 21 . 79 20 Critical Kills 2 | . 1 . . . 1 . Critical Parts Destroyed 1 | . . . . . 1 . Critical Strikes 7 | . 1 1 . . 5 . Burn 1 | . . . . . 1 . Meltdown 1 | . . . . . 1 . Destroy 3 | . 1 1 . . 1 . Blast 2 | . . . . . 2 . Melee Attacks 48 | . . . . . 24 24 Impact . | . . . . . . . Slashing 48 | . . . . . 24 24 Piercing . | . . . . . . . Sneak Attacks . | . . . . . . . Combat Hostiles . | . . . . . . . Follow-up Attacks . | . . . . . . . Damage Inflicted 7363 | 32 587 652 759 . 4151 1182 Guns 2844 | 32 515 134 527 . 1558 78 Cannons 2265 | . 72 69 232 . 1857 35 Explosions 2113 | . . 449 . . 649 1015 Melee 141 | . . . . . 87 54 Ramming . | . . . . . . . Kinetic 3957 | 32 587 652 487 . 2121 78 Thermal 1601 | . . . 272 . 1294 35 Explosive 1664 | . . . . . 649 1015 Electromagnetic . | . . . . . . . Impact . | . . . . . . . Slashing 141 | . . . . . 87 54 Piercing . | . . . . . . . Highest Corruption 2 | . . . . . 2 2 Average Corruption 1 | . . . . . 1 1 Corruption Purged . | . . . . . . . Corruption Blocked . | . . . . . . . Effects 17 | . . . . . 17 . Message Errors 3 | . . . . . 3 . Matter Fused 4 | . . . . . 4 . Energy Discharges 3 | . . . . . 3 . Data Loss (minor) 5 | . . . . . 5 . Misfires 1 | . . . . . 1 . Weapon Failures 1 | . . . . . 1 . Overload Shots . | . . . . . . . Overflow Damage 114 | . . 7 7 . 72 28 Projectiles 56 | . . . 7 . 49 . Explosions 58 | . . 7 . . 23 28 Melee . | . . . . . . . Knockbacks 8 | . . 1 2 . 5 . Impact . | . . . . . . . Kinetic 8 | . . 1 2 . 5 . Secondary . | . . . . . . . Self-Inflicted Damage 174 | . . 22 . . 152 . Shots 3 | . . 1 . . 2 . Rammed . | . . . . . . . Targets Rammed . | . . . . . . . Kicked . | . . . . . . . Crushed . | . . . . . . . Highest Temperature 376 | . 20 . 231 . 376 95 Average Temperature 75 | . 7 . 75 . 84 48 Received Heat Transfer 1546 | . 213 102 210 . 777 244 Effects 3 | . . . . . 3 . Interference 3 | . . . . . 3 . Siege Activations . | . . . . . . . Martial Activations . | . . . . . . . Shielding Activations . | . . . . . . . Robots Disrupted . | . . . . . . . Combat Hostiles . | . . . . . . . Robots Corrupted . | . . . . . . . Combat Hostiles . | . . . . . . . Parts Fried . | . . . . . . . Impact Corruptions . | . . . . . . . Robots Melted 1 | . . . . . 1 . Combat Hostiles 1 | . . . . . 1 . Parts Melted 15 | . . . 3 . 12 . Heat Transferred 2800 | . . . 625 . 2125 50 Parts Sabotaged . | . . . . . . . Parts Stolen . | . . . . . . . Parts Stripped . | . . . . . . . Power Chain Reactions . | . . . . . . . Alert | -11 -10 -10 -7 -7 -5 -4 ------- Run | Yrd Mat Sub Rec Scr Fac Fac Maximum Alert Level 1 | . . . . . 1 . Low Security (%) 78 | 100 100 . 100 . 42 100 Level 1 21 | . . . . . 57 . Level 2 . | . . . . . . . Level 3 . | . . . . . . . Level 4 . | . . . . . . . Level 5 . | . . . . . . . High Security . | . . . . . . . Max Security . | . . . . . . . Peak Influence 314 | 10 85 . 27 . 314 171 Initial 141 | . . . 21 . . 141 Average 88 | . 11 . 2 . 201 71 Influence Increases 1795 | 10 241 120 110 . 982 332 Destroy 0b10 Robot/C 1000 | . 140 120 60 . 520 160 Destroy 0b10 Robot/NC 90 | 10 20 . 35 . 15 10 Destroy Leader 186 | . 34 . . . 122 30 Successful Hack 43 | . 17 . . . 14 12 Disable Machine 120 | . . . 15 . 105 . Destroy Structure 266 | . . . . . 176 90 Lose Combat Pursuer 90 | . 30 . . . 30 30 Influence Decreases 1634 | 10 241 74 156 . 693 460 Entered New Map 173 | . . . 25 . . 148 Time Decay 1173 | 10 212 74 120 . 533 224 Lost Part 278 | . 19 . 11 . 160 88 Lost Ally 10 | . 10 . . . . . Squads Dispatched 19 | . 2 . . . 11 6 Investigation 11 | . 1 . . . 9 1 Extermination 3 | . . . . . 2 1 Reinforcement 5 | . 1 . . . . 4 Assault . | . . . . . . . Garrison . | . . . . . . . Intercept . | . . . . . . . Searches Triggered . | . . . . . . . Construction Impeded 1 | . . . . . . 1 Haulers Reinforced . | . . . . . . . Active Scanning Responses . | . . . . . . . Cargo Convoy Interrupts . | . . . . . . . Stealth | -11 -10 -10 -7 -7 -5 -4 --------- Run | Yrd Mat Sub Rec Scr Fac Fac Distress Signals 1 | . . . . . 1 . Communications Jammed . | . . . . . . . Distress Signals . | . . . . . . . Times Spotted 100 | . 19 8 3 3 42 25 Peak Tracking Total 19 | . 4 7 1 4 6 19 Tactical Retreats 8 | . 1 . . . 5 2 Traps | -11 -10 -10 -7 -7 -5 -4 ------- Run | Yrd Mat Sub Rec Scr Fac Fac Traps Triggered 3 | . . . . . 3 . Indirectly . | . . . . . . . Trap Hack Attempts . | . . . . . . . Triggered . | . . . . . . . Disarmed . | . . . . . . . Reprogrammed . | . . . . . . . Reused . | . . . . . . . Traps Extracted . | . . . . . . . Installed . | . . . . . . . Triggered . | . . . . . . . Machines | -11 -10 -10 -7 -7 -5 -4 ---------- Run | Yrd Mat Sub Rec Scr Fac Fac Machines Disabled 12 | . . 4 1 . 7 . Max in Single Turn 2 | . . 2 1 . 2 . Machines Repaired . | . . . . . . . Machines Dismantled . | . . . . . . . Machines Sabotaged . | . . . . . . . Overloaded Fab Kills . | . . . . . . . Hacking | -11 -10 -10 -7 -7 -5 -4 --------- Run | Yrd Mat Sub Rec Scr Fac Fac Machines Accessed 35 | . 7 1 8 7 10 2 Terminals 14 | . 7 . 5 . 2 . Fabricators 2 | . . . . . 1 1 Repair Stations 1 | . . . . . 1 . Recycling Units 7 | . . . 2 . 5 . Scanalyzers 2 | . . . . . 1 1 Garrison Access . | . . . . . . . Total Hacks 109 | . 20 4 11 28 36 10 Successful 82 | . 10 4 3 28 27 10 Failed 27 | . 10 . 8 . 9 . Catastrophic 8 | . 3 . 3 . 2 . Database Lockouts . | . . . . . . . Manual 32 | . 16 . 7 . 9 . Terminals 37 | . 20 . 8 . 9 . Fabricators 5 | . . . . . 3 2 Repair Stations 2 | . . . . . 2 . Recycling Units 20 | . . . 2 . 18 . Scanalyzers 12 | . . . . . 4 8 Garrison Access . | . . . . . . . Terminal Hacks 38 | . 3 4 1 28 2 . Record 26 | . . 4 1 21 . . Robot Analysis 6 | . . . . 6 . . Prototype ID Bank 2 | . 2 . . . . . Alert Level 1 | . . . . . 1 . Recall Extermination 1 | . . . . . 1 . Hauler Manifests 1 | . 1 . . . . . Proto ID Catalog 1 | . . . . 1 . . Fabricator Hacks 4 | . . . . . 2 2 Load Schematic 2 | . . . . . 1 1 Build 2 | . . . . . 1 1 Repair Station Hacks 2 | . . . . . 2 . Scan Component 1 | . . . . . 1 . Repair 1 | . . . . . 1 . Recycling Unit Hacks 13 | . . . 2 . 11 . Process 2 | . . . . . 2 . Report Inventory 7 | . . . 2 . 5 . Retrieve Matter 1 | . . . . . 1 . Retrieve Components 3 | . . . . . 3 . Scanalyzer 12 | . . . . . 4 8 Insert Component 6 | . . . . . 2 4 Analyze 6 | . . . . . 2 4 Garrison Access Hacks . | . . . . . . . Unauthorized Hacks 13 | . 7 . . . 6 . Terminals 8 | . 7 . . . 1 . Assimilate 3 | . 3 . . . . . Botnet 4 | . 3 . . . 1 . Operators 1 | . 1 . . . . . Fabricators . | . . . . . . . Repair Stations . | . . . . . . . Recycling Units 5 | . . . . . 5 . Fedlink 5 | . . . . . 5 . Scanalyzers . | . . . . . . . Garrison Access . | . . . . . . . Data Cores Recovered . | . . . . . . . Used . | . . . . . . . Hacking Detections 23 | . 7 . 7 . 7 2 Full Trace Events 6 | . 2 . . . 3 1 Feedback Events . | . . . . . . . Feedback Blocked . | . . . . . . . Robot Schematics Acquired . | . . . . . . . Robots Built . | . . . . . . . Authchips . | . . . . . . . Time . | . . . . . . . Total Robot Build Rating . | . . . . . . . Part Schematics Acquired 5 | . . . . . 2 3 Parts Built 2 | . . . . . 1 1 Authchips . | . . . . . . . Time 106 | . . . . . 53 53 Total Part Build Rating 12 | . . . . . 6 6 Parts Repaired 1 | . . . . . 1 . Time 39 | . . . . . 39 . Parts Recycled . | . . . . . . . Recycled Matter 52 | . . . . . 52 . Retrieved Matter 7 | . . . . . 7 . Retrieved Components 3 | . . . . . 3 . Parts Scanalyzed 6 | . . . . . 2 4 Part Schematics Acquired 5 | . . . . . 2 3 Parts Damaged 3 | . . . . . 1 2 Bothacking | -11 -10 -10 -7 -7 -5 -4 ------------ Run | Yrd Mat Sub Rec Scr Fac Fac Used RIF Installer . | . . . . . . . Robots Hacked 1 | . . . . . . 1 Non-combat . | . . . . . . . Combat 1 | . . . . . . 1 Robot Hacks Applied 1 | . . . . . . 1 parse_system 1 | . . . . . . 1 Relay Couplers Released . | . . . . . . . Fabnet Peak Effective % . | . . . . . . . Robots Rewired . | . . . . . . . Allies Hacked . | . . . . . . . Hacks Repelled . | . . . . . . . Allies | -11 -10 -10 -7 -7 -5 -4 -------- Run | Yrd Mat Sub Rec Scr Fac Fac Total Allies 1 | . 1 . . . . . Largest Group 1 | . 1 . . . . . Highest-Rated Group 10 | . 10 . . . . . Highest-Rated Ally 10 | . 10 . . . . . Total Orders . | . . . . . . . Ally Attacks . | . . . . . . . Total Damage . | . . . . . . . Kills . | . . . . . . . Allies Corrupted . | . . . . . . . Allies Melted . | . . . . . . . Intel | -11 -10 -10 -7 -7 -5 -4 ------- Run | Yrd Mat Sub Rec Scr Fac Fac Active Infowar (turns) 2844 | . 1052 118 . . 1216 458 Sensors 831 | . . . . . 373 458 Structural 1942 | . 1052 118 . . 772 . ECM 71 | . . . . . 71 . Robot Analysis Total 6 | . . . . 6 . . Derelict Logs Recovered 2 | . . . . 2 . . Drone Launches . | . . . . . . . Drone Recoveries . | . . . . . . . Exploration | -11 -10 -10 -7 -7 -5 -4 ------------- Run | Yrd Mat Sub Rec Scr Fac Fac Turns Passed 9902 | 91 1242 1296 1105 3821 1814 533 Spaces Moved 5495 | 57 578 998 503 1912 1053 394 Core 25 | 2 . . . . . 23 Treads 642 | . 578 63 . . . 1 Legs 55 | 55 . . . . . . Wheels 4718 | . . 935 503 1912 1053 315 Hover . | . . . . . . . Flight 55 | . . . . . . 55 Fastest Speed 50 | 50 160 95 80 190 85 50 Average Speed 153 | 117 160 119 192 196 115 84 Slowest Speed 380 | 120 160 160 380 205 133 170 Overloaded Moves . | . . . . . . . Propulsion Burnouts . | . . . . . . . Robots Hopped 1 | . . . . . . 1 Potential Cave-ins 4 | . . . . . . 4 Cave-ins Triggered . | . . . . . . . Exploration Rate (%) 47 | 3 68 42 94 94 19 10 Regions Visited 6 Branch Regions 3 Pre-discovered Areas 2 | . . . . 1 1 . Known Exits Taken 2 | . . 1 . . 1 . Unknown Exits Taken 4 | 1 1 . 1 1 . . Scrap Searched 12 | . . 3 . 9 . . Spaces Dug 66 | . . 20 . . 19 27 Terrain Destroyed 245 | . . 83 . . 93 69 Melee 40 | . . . . . 19 21 Projectile 16 | . . . . . 10 6 AOE 189 | . . 83 . . 64 42 Terrain Rammed . | . . . . . . . Walls Destroyed . | . . . . . . . Machines Disabled . | . . . . . . . Actions | -11 -10 -10 -7 -7 -5 -4 --------- Run | Yrd Mat Sub Rec Scr Fac Fac Total 6503 | 72 811 1068 592 2003 1416 541 Wait 399 | . 172 3 27 2 114 81 Move 5487 | 56 577 997 502 1911 1052 392 Hop 1 | . . . . . . 1 Pick Up 123 | 7 6 7 24 44 32 3 Fast Attach 25 | 6 . 5 3 2 5 4 Attach 50 | . 3 1 5 1 27 13 Detach 7 | . . . . 2 3 2 Swap 39 | . 3 7 1 4 21 3 Drop 75 | . 3 17 4 37 8 6 Fire 223 | 3 47 22 26 . 113 12 Melee 48 | . . . . . 24 24 Ram . | . . . . . . . Kick . | . . . . . . . Crush . | . . . . . . . Escape Stasis 16 | . . . . . 16 . Rewire 4 | . . 3 . . 1 . Trap . | . . . . . . . Miscellaneous 6 | . . 6 . . . . Route ------- -11/Scrapyard -10/Materials (discovered 4 exits: [*Mat x2] / [*Min] / *Sub) -10/Subcaves -7/Recycling (discovered 2 exits: *Fac / *Scr) -7/Scraptown (discovered 2 exits: *Fac x2) -5/Factory -4/Factory History --------- Turn | Location | Event 6 | -11/Scrapyard | Discovered new exit (range 15) 92 | -11/Scrapyard | Entered Materials 303 | -10/Materials | Build established: Mutant 310 | -10/Materials | Discovered new exit (range 16) 403 | -10/Materials | Discovered new exit (range 15) 774 | -10/Materials | Discovered new exit (range 7) 1059 | -10/Materials | Discovered new exit (range 13) 1334 | -10/Materials | Entered Subcaves 1537 | -10/Subcaves | Shifting Twisted Machinery released Mak. Thermal Plating 1548 | -10/Subcaves | Shifting Twisted Machinery released Sub. Machine Gun 1729 | -10/Subcaves | Visited Clippyterm 1733 | -10/Subcaves | Identified exit to Recycling 1733 | -10/Subcaves | Learned Factory emergency access door positions 1823 | -10/Subcaves | A swath of the cavern ceiling suddenly collapsed 1840 | -10/Subcaves | Shifting Twisted Machinery released Scrap Shield 1841 | -10/Subcaves | Shifting Twisted Machinery released Humpback 2630 | -10/Subcaves | Entered Recycling 2688 | -7/Recycling | Core integrity fell below 50% 2963 | -7/Recycling | Build established: Hauler-Mutant 3049 | -7/Recycling | Lost 3 parts (1n2w) 3143 | -7/Recycling | Core integrity fell below 20% 3266 | -7/Recycling | Scanned before Scraplab entrance 3457 | -7/Recycling | Discovered new exit (range 7) 3714 | -7/Recycling | Entered Scraplab 3731 | -7/Recycling | Discovered new exit (range 2) 3735 | -7/Recycling | Entered Scraptown 4192 | -7/Scraptown | Discovered new exit (range 5) 4464 | -7/Scraptown | Scanned Subdweller tech in exchange for log data 4470 | -7/Scraptown | Learned location of Zion (-7) 4472 | -7/Scraptown | Learned Research terminal intel 4515 | -7/Scraptown | Visited Science Testing Area 4559 | -7/Scraptown | Visited Bundlers 4770 | -7/Scraptown | Visited Cave Peace 4827 | -7/Scraptown | Visited CR-KLE's Repair Center 4840 | -7/Scraptown | CR-KLE repaired 5 parts 5398 | -7/Scraptown | Visited Junk Repository 5569 | -7/Scraptown | Visited Supply Room 5643 | -7/Scraptown | Visited Fellowship of the Rings 5717 | -7/Scraptown | Visited UFD Registry 5717 | -7/Scraptown | Registered with UFD as "Laserlever" 5776 | -7/Scraptown | Visited Science Guys 5840 | -7/Scraptown | Visited DA-N13 Charitable Foundation 5848 | -7/Scraptown | Found DCF Scrap (28 items) 5983 | -7/Scraptown | Visited Abandonware Association 6011 | -7/Scraptown | Learned abandonware demo "ERRANTS.EXE" 6011 | -7/Scraptown | Learned abandonware demo "MELTYB.EXE" 6091 | -7/Scraptown | Delivered Scrap Shield to a Scientist 6307 | -7/Scraptown | Visited Scrap Suit Storage 6317 | -7/Scraptown | Found Scrap Suit 6329 | -7/Scraptown | Found Scrap Suit 6392 | -7/Scraptown | Visited Supply Room 6485 | -7/Scraptown | Visited Observation Area 6575 | -7/Scraptown | Visited Modified Component R&D 6979 | -7/Scraptown | Visited Chapter 10 7047 | -7/Scraptown | Visited Analyses Database 7143 | -7/Scraptown | Visited Curators Association 7424 | -7/Scraptown | Met Optimus 7424 | -7/Scraptown | Accepted into 0bPrime 7509 | -7/Scraptown | Civil war broke out across Scraptown 7538 | -7/Scraptown | Discovered new exit (range 10) 7556 | -7/Scraptown | Entered Factory 7556 | -5/Factory | Evolved 10 slots: Propulsion x3, Utility x7 7573 | -5/Factory | Lost 5 allies 7644 | -5/Factory | Loaded intel: 8 recycling unit locations 7948 | -5/Factory | Destroyed 8 combat bots 8221 | -5/Factory | Learned location of Protoforge (-2) 8268 | -5/Factory | Repaired Broken Ovr. Medium Treads 8368 | -5/Factory | Fabricated Ovr. Medium Treads? 8665 | -5/Factory | Discovered new exit (range 9) 8677 | -5/Factory | Identified exit to Factory 8793 | -5/Factory | Core integrity fell below 50% 8821 | -5/Factory | Lost 4 parts (1p1n2u) 9365 | -5/Factory | Build established: Hacker-Mutant 9370 | -5/Factory | Entered another Factory area 9370 | -4/Factory | Evolved 2 slots: Power x1, Utility x1 9572 | -4/Factory | Lost 3 parts (1u2w) 9805 | -4/Factory | Fabricated Ovr. Medium Treads (x1) 9886 | -4/Factory | Core integrity fell below 50% 9903 | -4/Factory | Self-destructed Last Messages --------------- 09865_ Acquired 5 matter. 09867_ U-05 Engineer works on Manufacturing Mainframe. 09874_ Targeting Computer destroyed. 09875_ K-01 Serf cleans the Repair Station. 09878_ S-27 Virus destroyed. 09880_ Critical hit (Burn: +50). 09882_ Impulse Thruster destroyed. 09884_ Flexi-carbon Leg destroyed. 09884_ Critical hit (Burn: +50). 09886_ Power Sword destroyed. 09895_ S-27 Virus destroyed. 09895_ Destroyed Lgt. Nuclear Core. 09895_ S-27 Virus destroyed. 09897_ Acquired Arm. Medium Treads. 09898_ U-05 Engineer destroyed. 09899_ Hvy. Rocket Launcher destroyed. 09900_ ALERT: Security rotation in progress. 09902_ Acquired Arm. Medium Treads. [Achievement: I Think I Know What's Going On] Map ----- +----------------------------------------------------+ | # !! ## #???????????????????? | | # ! ## """"""""" #???????????????????? | | # ## #???????????????????? | | # "S !## """"""""" #???????????????????? | | # """ ## ##??????????????????? | | # "" ## """"""""" "#??????????????????? | | # ##! ##??????????????????? | | ###+########"#############"#???????????????????? | | #??????????###???????????????????? | | #????????????????????????????????? | | #????????????????????????????????? | | #????????????????????????????????? | | #????????????????????????????????? | | ########### #????????????????????????????????? | | ??????????# #????????????????????????????????? | | ?????????## ############?????????????????????? | | ????????### ^^ # #???????????????????? | | ########### ^ # #???????????????????? | | # # """ """ #???????????????????? | | """ # """ """ #???????????????????? | | """ #* """ """ #???????????????????? | | """ % = #???????????????????? | | """""" %= #???????????????????? | | %g%p[ #???????????????????? | | """"" g==p s #???????????????????? | | "" gg=s @= #???????????????????? | | "" # # s === #???????????????????? | | """ # # g ! === #???????????????????? | | # ##############???????????????????? | | # #?????????????????????????? | | ### ###### #?????????????????????????? | | ##????# #?????????????????????????? | | # ###?????# #?????????????????????????? | | ###???????# #?????????????????????????? | | #?????????# #?????????????????????????? | | ??????????# ########??????????????????? | | ??????????# ?????????????????? | | #?????????# ?????????????????? | | #?????????# ????????????????? | | #?????????# ????????????????? | | ########### ????????????????? | | # || # ##########+###???????????????????? | | # || # # ? ????????????????????????? | | # # # ???????????????????????? | | # + # """ """???????????????????????? | | # # # """ """ #???????????????????? | | # # [# """ """ #???????????????????? | | # # =%# ????????????????????? | | # # *=# ! """ ??????????????????????? | | ########### # """ ??????????????????????? | +----------------------------------------------------+ Best States ------------- Heat Dissipation 67 Energy Generation 34 Energy Capacity 370 Matter Stores 300 Matter Capacity 300 Sight Range 16 Robot Scan Range 15 Terrain Scan Density 10 ECM Strength 2 Armor Coverage 800 Propulsion Shielding 66 Utility Shielding 33 Phase Shifting 5 Evasion (%) 60 Targeting Accuracy 5 Recoil Reduction 2 Kinecelleration 40 Offensive Hacking 22 Defensive Hacking 21 Authchip Count 1 Item Schematics ----------------- Ovr. Medium Treads | -5/Factory | Scanalyzed Lrg. Storage Unit | -5/Factory | Scanalyzed System Shield | -4/Factory | Scanalyzed Imp. Cooling System | -4/Factory | Scanalyzed Mass Driver | -4/Factory | Scanalyzed Robot Schematics ------------------ None Fabricated ------------ Ovr. Medium Treads | x1 | -5/Factory Ovr. Medium Treads | x1 | -4/Factory Repaired ---------- Ovr. Medium Treads | 99% | -5/Factory | Broken Alien Tech Used ----------------- None Achievements -------------- I Think I Know What's Going On Packrat Tank Challenges ------------ None Game ------ Seed ActiveTrapStorage Manual? 0 Play Time 01:36:54 Cumulative 69.5 hours Start 2025.07.25 @ 18:48:51 End 2025.07.25 @ 22:02:08 Sessions 3 Manual Loads 0 Difficulty Rogue Special Mode None Game No. 51 Rogue 51 Adventurer 0 Explorer 0 Win Type - Total 0 Types 0/0/0/0/0/0/0/0/0/0 Lore% 50 Gallery% 46 Achievement% 40 Wizard Run 0 Options --------- Layout 1 ASCII 0 Keyboard 0 Movement Numpad Keybinds 0 Fullscreen 1 Font 24/Smallcaps Map View 50x35 Zoom Use 0% Tactical HUD 1 Map Filters NONE Filters NONE Steam 1 RUN: f3127fba-f251-423f-9c9b-623dd3370962